lending/lending_fUSD_20240603
["ID","MTS","AMOUNT","RATE_DAILY","PERIOD"]
[328444425,1717396250928,-500.0,0.0003041,4]
[328444426,1717396250937,-524.17,0.0003041,4]
[328444427,1717396250946,-746.68,0.0003041,4]
[328444428,1717396250956,-500.0,0.0003041,4]
[328444429,1717396250966,-1346.27,0.0003041,4]
[328444430,1717396250975,-500.0,0.0003041,4]
[328444431,1717396250984,-502.15,0.0003041,4]
[328444432,1717396250993,-500.0,0.0003041,4]
[328444433,1717396251003,-260.1868794,0.000305,2]
[328444434,1717396251012,-500.0,0.000305,2]
[328444435,1717396251020,-345.0,0.000305,3]
[328444436,1717396251029,-1258.70765526,0.000305,2]
[328444437,1717396251038,-150.0,0.000305,6]
[328444438,1717396251047,-151.43,0.00030548,2]
[328444439,1717396251056,-154.41643192,0.00030569,7]
[328444440,1717396251066,-150.0,0.00030587,2]
[328444441,1717396251075,-150.0,0.00030587,2]
[328444442,1717396251084,-150.0,0.00030587,2]
[328444443,1717396251093,-150.0,0.00030587,2]
[328444444,1717396251102,-252.946,0.00030587,2]
[328444445,1717396251111,-150.0,0.00030587,2]
[328444446,1717396251120,-150.0,0.00030587,2]
[328444447,1717396251129,-150.0,0.00030587,2]
[328444448,1717396251138,-150.0,0.00030587,2]
[328444449,1717396251147,-150.0,0.00030587,2]
[328444450,1717396251156,-150.0,0.00030587,2]
[328444451,1717396251165,-150.522,0.00030587,2]
[328444452,1717396251175,-150.995,0.00030587,2]
[328444453,1717396251184,-168.27,0.00030587,2]
[328444454,1717396251193,-247.506,0.00030587,2]
[328444455,1717396251202,-179.50132754,0.00030595,2]
[328444456,1717396251212,-4962.54409741,0.00030595,2]
[328444457,1717396251221,-3825.10112467,0.00030596,3]
[328444458,1717396251230,-170.76533175,0.00030638,7]
[328444459,1717396251239,-1887.2102036,0.00030644,15]
[328444460,1717396251248,-7045.35204464,0.00030644,15]
[328444461,1717396251256,-150.0,0.00030684,2]
[328444462,1717396251266,-500.0,0.00030684,4]
[328444463,1717396251275,-500.0,0.00030684,4]
[328444464,1717396251286,-827.28,0.00030684,4]
[328444465,1717396251296,-623.21,0.00030684,4]
[328444466,1717396251305,-20761.12,0.00030684,4]
[328444467,1717396251314,-500.0,0.00030684,4]
[328444468,1717396251323,-1345.84,0.00030684,4]
[328444469,1717396251333,-500.0,0.00030684,4]
[328444470,1717396251342,-524.17,0.00030684,4]
[328444471,1717396251351,-746.68,0.00030684,4]
[328444472,1717396251362,-500.0,0.00030684,4]
[328444473,1717396251372,-1346.27,0.00030684,4]
[328444474,1717396251384,-500.0,0.00030684,4]
[328444475,1717396251393,-502.15,0.00030684,4]
[328444476,1717396251402,-500.0,0.00030684,4]
[328444477,1717396251414,-150.0,0.00030689,2]
[328444478,1717396251423,-150.0,0.000307,2]
[328444479,1717396251432,-150.0,0.00030703,2]
[328444480,1717396251441,-150.0,0.00030709,2]
[328444481,1717396251450,-150.0,0.00030718,2]
[328444482,1717396251460,-161.71792851,0.0003072,7]
[328444483,1717396251469,-150.0,0.00030733,2]
[328444484,1717396251478,-150.0,0.00030735,2]
[328444485,1717396251487,-150.0,0.00030741,2]
[328444486,1717396251497,-150.0,0.00030742,2]
[328444487,1717396251507,-150.0,0.00030765,2]
[328444488,1717396251516,-150.0,0.00030766,2]
[328444489,1717396251526,-150.0,0.0003077,2]
[328444490,1717396251536,-150.0,0.0003077,2]
[328444491,1717396251548,-150.0,0.00030778,2]
[328444492,1717396251557,-150.0,0.00030785,2]
[328444493,1717396251566,-150.0,0.00030788,2]
[328444494,1717396251575,-3324.23272378,0.00030797,2]
[328444495,1717396251584,-73973.58302551,0.000308,2]
[328444496,1717396251593,-1258.70765526,0.000308,2]
[328444497,1717396251602,-150.0,0.00030813,2]
[328444498,1717396251611,-150.0,0.00030813,2]
[328444499,1717396251620,-150.0,0.00030818,2]
[328444500,1717396251629,-7306.98,0.00030827,5]
[328444501,1717396251638,-150.0,0.00030845,2]
[328444502,1717396251648,-150.0,0.00030859,2]
[328444503,1717396251657,-150.0,0.00030863,2]
[328444504,1717396251666,-150.0,0.00030875,2]
[328444505,1717396251675,-212.0,0.0003088,2]
[328444506,1717396251684,-150.0,0.0003088,2]
[328444507,1717396251694,-150.0,0.0003089,2]
[328444508,1717396251703,-150.0,0.00030896,2]
[328444509,1717396251713,-150.0,0.00030909,2]
[328444510,1717396251722,-150.0,0.00030917,2]
[328444511,1717396251731,-154.57215213,0.00030918,7]
[328444512,1717396251740,-150.0,0.00030933,2]
[328444513,1717396251750,-150.0,0.00030939,2]
[328444514,1717396251759,-150.0,0.00030948,2]
[328444515,1717396251768,-500.0,0.00030958,4]
[328444516,1717396251779,-500.0,0.00030958,4]
[328444517,1717396251788,-827.28,0.00030958,4]
[328444518,1717396251797,-623.21,0.00030958,4]
[328444519,1717396251807,-20761.12,0.00030958,4]
[328444520,1717396251816,-500.0,0.00030958,4]
[328444521,1717396251825,-1345.84,0.00030958,4]
[328444522,1717396251834,-500.0,0.00030958,4]
[328444523,1717396251844,-524.17,0.00030958,4]
[328444524,1717396251853,-746.68,0.00030958,4]
[328444525,1717396251862,-500.0,0.00030958,4]
[328444526,1717396251871,-1346.27,0.00030958,4]
[328444527,1717396251881,-500.0,0.00030958,4]
[328444528,1717396251890,-502.15,0.00030958,4]
[328444529,1717396251901,-500.0,0.00030958,4]
[328444530,1717396251910,-178.9597924,0.00030963,7]
[328444531,1717396251920,-150.0,0.00030975,2]
[328444532,1717396251929,-150.0,0.00030979,2]
[328444533,1717396251939,-434.64402927,0.00031,4]
[328444534,1717396251948,-18566.0,0.00031,5]
[328444535,1717396251959,-500.0,0.00031,2]
[328444536,1717396251968,-1299.29102994,0.00031,4]
[328444537,1717396251977,-98392.04267353,0.00031,2]
[328444538,1717396251986,-2000.0,0.00031,2]
[328444539,1717396251996,-200.0,0.00031,2]
[328444540,1717396252005,-200.0,0.00031,2]
[328444541,1717396252015,-1400.0,0.00031,2]
[328444542,1717396252023,-150.0,0.00031,6]
[328444543,1717396252033,-154.3,0.00031007,2]
[328444544,1717396252042,-184.93893684,0.00031077,7]
[328444545,1717396252052,-1258.70765526,0.000311,2]
[328444546,1717396252062,-154.41643192,0.00031113,7]
[328444547,1717396252071,-150.0,0.00031186,7]
[328444548,1717396252080,-150.0,0.00031186,7]
[328444549,1717396252091,-150.0,0.00031186,7]
[328444550,1717396252101,-206.92328539,0.00031186,7]
[328444551,1717396252110,-254.92558157,0.00031186,7]
[328444552,1717396252119,-150.0,0.00031186,7]
[328444553,1717396252128,-215.23470063,0.00031186,7]
[328444554,1717396252137,-150.0,0.00031186,7]
[328444555,1717396252147,-500.0,0.00031232,4]
[328444556,1717396252157,-500.0,0.00031232,4]
[328444557,1717396252166,-827.28,0.00031232,4]
[328444558,1717396252175,-623.21,0.00031232,4]
[328444559,1717396252184,-20761.12,0.00031232,4]
[328444560,1717396252194,-500.0,0.00031232,4]
[328444561,1717396252203,-1345.84,0.00031232,4]
[328444562,1717396252213,-500.0,0.00031232,4]
[328444563,1717396252223,-524.17,0.00031232,4]
[328444564,1717396252232,-746.68,0.00031232,4]
[328444565,1717396252241,-260.45922938,0.00031232,4]
[328444566,1717396252250,-1346.27,0.00031232,4]
[328444567,1717396252259,-500.0,0.00031232,4]
[328444568,1717396252269,-502.15,0.00031232,4]
[328444569,1717396252279,-500.0,0.00031232,4]
[328444570,1717396252293,-2000.0,0.0003131,2]
[328444571,1717396252302,-200.0,0.0003131,2]
[328444572,1717396252311,-212.0,0.0003136,2]
[328444573,1717396252320,-161.72507466,0.0003138,7]
[328444574,1717396252330,-1258.70765526,0.000314,3]
[328444575,1717396252339,-178.9597924,0.00031415,7]
[328444576,1717396252350,-154.41643192,0.00031444,7]
[328444577,1717396252359,-154.41643192,0.00031467,7]
[328444578,1717396252370,-155.48204463,0.0003148,7]
[328444579,1717396252380,-500.0,0.000315,2]
[328444580,1717396252389,-150.0,0.000315,7]
[328444581,1717396252398,-150.0,0.00031505,7]
[328444582,1717396252408,-339.47708094,0.00031506,4]
[328444583,1717396252417,-500.0,0.00031506,4]
[328444584,1717396252427,-827.28,0.00031506,4]
[328444585,1717396252436,-623.21,0.00031506,4]
[328444586,1717396252446,-20761.12,0.00031506,4]
[328444587,1717396252455,-500.0,0.00031506,4]
[328444588,1717396252468,-1345.84,0.00031506,4]
[328444589,1717396252478,-500.0,0.00031506,4]
[328444590,1717396252487,-524.17,0.00031506,4]
[328444591,1717396252497,-746.68,0.00031506,4]
[328444592,1717396252506,-1346.27,0.00031506,4]
[328444593,1717396252515,-500.0,0.00031506,4]
[328444594,1717396252525,-502.15,0.00031506,4]
[328444595,1717396252534,-500.0,0.00031506,4]
[328444596,1717396252543,-157.74577382,0.0003152,7]
[328444597,1717396252554,-1000.0,0.00031544,2]
[328444598,1717396252563,-150.0,0.00031578,2]
[328444599,1717396252573,-1939.1138,0.0003158,2]
[328444600,1717396252583,-150.0,0.00031597,2]
[328444601,1717396252592,-493.84917495,0.00031601,2]
[328444602,1717396252601,-150.0,0.00031604,2]
[328444603,1717396252612,-150.0,0.0003161,2]
[328444604,1717396252621,-152.48854642,0.0003162,7]
[328444605,1717396252631,-2000.0,0.00031623,2]
[328444606,1717396252640,-200.0,0.00031623,2]
[328444607,1717396252650,-1869.65827179,0.00031632,2]
[328444608,1717396252659,-150.0,0.00031644,2]
[328444609,1717396252668,-150.0,0.00031644,2]
[328444610,1717396252677,-150.0,0.00031644,2]
[328444611,1717396252687,-150.0,0.00031644,2]
[328444612,1717396252696,-304.95,0.00031644,2]
[328444613,1717396252705,-422.0,0.00031644,2]
[328444614,1717396252719,-408.47,0.00031644,2]
[328444615,1717396252728,-239.42,0.00031644,2]
[328444616,1717396252737,-327.62,0.00031644,2]
[328444617,1717396252746,-155.87,0.00031644,2]
[328444618,1717396252754,-352.88,0.00031644,2]
[328444619,1717396252763,-525.57,0.00031644,2]
[328444620,1717396252773,-376.13,0.00031644,2]
[328444621,1717396252782,-300.0,0.00031644,2]
[328444622,1717396252791,-422.0,0.00031644,2]
[328444623,1717396252800,-150.0,0.00031644,2]
[328444624,1717396252809,-150.0,0.00031644,2]
[328444625,1717396252818,-352.88,0.00031644,2]
[328444626,1717396252827,-525.57,0.00031644,2]
[328444627,1717396252836,-523.32,0.00031644,2]
[328444628,1717396252845,-150.0,0.00031644,2]
[328444629,1717396252853,-150.0,0.00031644,2]
[328444630,1717396252862,-352.88,0.00031644,2]
[328444631,1717396252872,-422.0,0.00031644,2]
[328444632,1717396252881,-418.72,0.00031644,2]
[328444633,1717396252890,-150.0,0.00031644,2]
[328444634,1717396252899,-150.0,0.00031644,2]
[328444635,1717396252908,-351.6,0.00031644,2]
[328444636,1717396252917,-150.0,0.00031644,2]
[328444637,1717396252926,-150.0,0.00031644,2]
[328444638,1717396252935,-150.5,0.0003166,15]
[328444639,1717396252944,-150.5,0.0003167,15]
[328444640,1717396252953,-150.5,0.0003168,15]
[328444641,1717396252966,-167.71118808,0.00031687,2]
[328444642,1717396252974,-1258.70765526,0.000317,3]
[328444643,1717396252984,-200.73962183,0.00031711,2]
[328444644,1717396252992,-325.0218728,0.00031724,2]
[328444645,1717396253001,-7852.35251623,0.00031733,3]
[328444646,1717396253010,-150.0,0.00031739,2]
[328444647,1717396253019,-338.2663262,0.00031742,2]
[328444648,1717396253028,-1739.7971863,0.00031746,2]
[328444649,1717396253037,-19758.58446142,0.00031747,4]
[328444650,1717396253046,-23977.26260831,0.00031747,4]
[328444651,1717396253055,-150.0,0.00031763,7]
[328444652,1717396253064,-178.9597924,0.00031769,7]
[328444653,1717396253074,-154.41643192,0.00031775,7]
[328444654,1717396253083,-150.0,0.00031779,2]
[328444655,1717396253092,-500.0,0.0003178,4]
[328444656,1717396253100,-827.28,0.0003178,4]
[328444657,1717396253109,-623.21,0.0003178,4]
[328444658,1717396253119,-20761.12,0.0003178,4]
[328444659,1717396253128,-500.0,0.0003178,4]
[328444660,1717396253137,-1345.84,0.0003178,4]
[328444661,1717396253146,-500.0,0.0003178,4]
[328444662,1717396253156,-524.17,0.0003178,4]
[328444663,1717396253165,-746.68,0.0003178,4]
[328444664,1717396253174,-1346.27,0.0003178,4]
[328444665,1717396253183,-500.0,0.0003178,4]
[328444666,1717396253193,-502.15,0.0003178,4]
[328444667,1717396253202,-500.0,0.0003178,4]
[328444668,1717396253212,-1000.0,0.000318,2]
[328444669,1717396253221,-212.0,0.0003184,2]
[328444670,1717396253230,-150.0,0.00031879,7]
[328444671,1717396253240,-1887.2102036,0.00031922,15]
[328444672,1717396253249,-7045.35204464,0.00031922,15]
[328444673,1717396253258,-200.0,0.00031939,2]
[328444674,1717396253269,-161.67920678,0.00031954,7]
[328444675,1717396253279,-500.0,0.00031956,3]
[328444676,1717396253292,-154.41643192,0.00031958,7]
[328444677,1717396253302,-154.41643192,0.00031959,7]
[328444678,1717396253311,-500.0,0.00031965,3]
[328444679,1717396253319,-154.41643192,0.00031967,7]
[328444680,1717396253330,-154.41643192,0.00031972,7]
[328444681,1717396253339,-500.0,0.00031974,3]
[328444682,1717396253348,-500.0,0.00031982,3]
[328444683,1717396253358,-184258.26091692,0.00032,2]
[328444684,1717396253367,-500.0,0.00032,2]
[328444685,1717396253376,-505.32904223,0.00032,2]
[328444686,1717396253385,-1258.70765526,0.00032,3]
[328444687,1717396253394,-150.0,0.00032,7]
[328444688,1717396253404,-152.0,0.00032029,3]
[328444689,1717396253412,-150.0,0.00032052,7]
[328444690,1717396253421,-157.74577382,0.00032053,7]
[328444691,1717396253431,-500.0,0.00032054,4]
[328444692,1717396253440,-827.28,0.00032054,4]
[328444693,1717396253449,-623.21,0.00032054,4]
[328444694,1717396253458,-11870.37596916,0.00032054,4]
[328444695,1717396253704,-614.54734786,0.00032054,4]
[328444696,1717396253742,-3817.87196311,0.00032054,4]
[328444697,1717396253753,-744.21087917,0.00032054,4]
[328444698,1717396270702,35446.92403944,0.00019451,2]
[328444699,1717396281668,620.36078575,0.00017259,2]
[328444700,1717396293468,13484.01509006,0.00017259,2]
[328444701,1717396309721,1066.49445789,0.00017259,2]
[328444702,1717396322182,407.11799921,0.00017259,2]
[328444705,1717396383140,150.0,0.00019725,2]
[328444706,1717396383980,150.0,0.00019725,2]
[328444707,1717396399624,200.0,0.00031605,120]
[328444708,1717396411791,251.69708886,0.0002,2]
[328444710,1717396470114,3158.93430122,0.00017225,2]
[328444711,1717396482062,304.0,0.00031,30]
[328444718,1717396562444,150.0,0.00019725,2]
[328444719,1717396562661,150.0,0.00019725,2]
[328444720,1717396634971,23237.14034437,0.0003,30]
[328444724,1717397005210,150.0,0.00025111,9]
[328444732,1717397351106,-226.51830624,0.000201,2]
[328444737,1717397429501,1000.0,0.00017259,2]
[328444744,1717397431874,-615.44,0.00022,2]
[328444745,1717397431884,-1100.11519801,0.00022,2]
[328444746,1717397431895,-155.26391134,0.00023443,2]
[328444747,1717397431905,-158.26093892,0.00024284,2]
[328444748,1717397431915,-582.03,0.00024328,2]
[328444749,1717397431924,-156.46,0.00024384,2]
[328444750,1717397431936,-162.68,0.00024384,2]
[328444751,1717397431946,-929.09920929,0.00025,2]
[328444752,1717397431955,-1275.18335769,0.00025,2]
[328444753,1717397431965,-1202.31874789,0.00025111,2]
[328444754,1717397431975,-3748.290628,0.00025724,2]
[328444755,1717397431984,-250.0,0.00025853,2]
[328444756,1717397431995,-686.95,0.0002589,2]
[328444757,1717397432004,-1000.0,0.00025896,2]
[328444758,1717397432014,-987.9,0.0002593,2]
[328444759,1717397432023,-523.84331992,0.00026048,2]
[328444760,1717397432033,-155.0,0.00026048,2]
[328444761,1717397432042,-237.8220404,0.00026048,2]
[328444762,1717397432054,-1743.2057019,0.00026048,2]
[328444763,1717397432066,-484.28691844,0.00026048,2]
[328444764,1717397432078,-786.86579596,0.00026048,2]
[328444765,1717397432087,-1259.84621031,0.00026048,2]
[328444766,1717397432097,-251.95335155,0.00026049,2]
[328444767,1717397432106,-195.46467376,0.00026049,2]
[328444768,1717397432115,-23900.0,0.0002605,2]
[328444769,1717397432125,-500.0,0.00026148,2]
[328444770,1717397432135,-150.0,0.00026219,2]
[328444771,1717397432150,-250.0,0.00026259,2]
[328444772,1717397432159,-227.54,0.0002629,2]
[328444773,1717397432169,-438.15,0.00026325,2]
[328444774,1717397432179,-250.0,0.00026374,2]
[328444776,1717397432191,-582.03,0.00026592,2]
[328444778,1717397432200,-4024.29763669,0.00027,2]
[328444780,1717397432212,-300.0,0.0002729,2]
[328444782,1717397432222,-805.91709047,0.0002739,2]
[328444784,1717397432232,-500.0,0.00027397,4]
[328444786,1717397432241,-500.0,0.00027397,4]
[328444788,1717397432250,-500.0,0.00027397,4]
[328444790,1717397432261,-470.71488845,0.00027397,4]
[328444792,1717397432271,-500.0,0.00027397,4]
[328444794,1717397432281,-500.0,0.00027397,4]
[328444796,1717397432290,-500.0,0.00027397,4]
[328444798,1717397432300,-500.0,0.00027397,4]
[328444800,1717397432309,-500.0,0.00027397,4]
[328444802,1717397432318,-302.61262159,0.00027397,4]
[328444804,1717397432328,-500.0,0.00027671,4]
[328444806,1717397432337,-500.0,0.00027945,4]
[328444808,1717397432347,-211.2533,0.00028093,2]
[328444810,1717397432356,-257.5523,0.00028192,2]
[328444812,1717397432366,-3747.4186,0.00028192,2]
[328444814,1717397432376,-4479.8916,0.00028193,2]
[328444816,1717397432385,-777.3035,0.00028193,2]
[328444818,1717397432394,-4683.8202,0.00028193,2]
[328444820,1717397432404,-4074.9648,0.00028193,2]
[328444822,1717397432413,-351.2749,0.00028193,2]
[328444824,1717397432423,-2500.0,0.00028193,2]
[328444826,1717397432434,-704.5352045,0.00028193,2]
[328444828,1717397432443,-500.0,0.00028219,4]
[328444830,1717397432453,-560.34597756,0.00028292,4]
[328444833,1717397432463,-488.17552122,0.00028292,4]
[328444834,1717397432473,-370.29756648,0.00028292,4]
[328444835,1717397432482,-500.0,0.00028292,4]
[328444836,1717397432492,-889.05,0.00028292,4]
[328444837,1717397432501,-500.0,0.00028292,4]
[328444838,1717397432511,-455.54189992,0.00028292,4]
[328444839,1717397432521,-500.0,0.00028292,4]
[328444840,1717397432530,-198.07152688,0.00028292,4]
[328444841,1717397432540,-500.0,0.00028292,4]
[328444842,1717397432549,-500.0,0.00028292,4]
[328444843,1717397432559,-500.0,0.00028292,4]
[328444844,1717397432568,-500.0,0.00028292,4]
[328444845,1717397432578,-500.0,0.00028292,4]
[328444846,1717397432587,-500.0,0.00028292,4]
[328444847,1717397432597,-500.0,0.00028292,4]
[328444848,1717397432606,-500.0,0.00028292,4]
[328444849,1717397432616,-500.0,0.00028292,4]
[328444850,1717397432626,-500.0,0.00028292,4]
[328444851,1717397432640,-500.0,0.00028292,4]
[328444852,1717397432650,-500.0,0.00028292,4]
[328444853,1717397432661,-500.0,0.00028292,4]
[328444854,1717397432670,-196.10047726,0.00028292,4]
[328444855,1717397432680,-500.0,0.00028292,4]
[328444856,1717397432691,-859.75,0.00028292,4]
[328444857,1717397432700,-500.0,0.00028292,4]
[328444858,1717397432710,-500.0,0.00028292,4]
[328444859,1717397432721,-583.82,0.00028292,4]
[328444860,1717397432731,-500.0,0.00028292,4]
[328444861,1717397432740,-500.0,0.00028292,4]
[328444862,1717397432750,-500.0,0.00028292,4]
[328444863,1717397432759,-590.4954011,0.00028292,4]
[328444864,1717397432769,-500.0,0.00028292,4]
[328444865,1717397432778,-500.0,0.00028292,4]
[328444866,1717397432787,-500.0,0.00028292,4]
[328444867,1717397432796,-500.0,0.00028292,4]
[328444868,1717397432805,-500.0,0.00028292,4]
[328444869,1717397432815,-500.0,0.00028292,4]
[328444870,1717397432825,-2768.69,0.00028292,4]
[328444871,1717397432834,-6332.1,0.00028292,4]
[328444872,1717397432843,-500.0,0.00028292,4]
[328444873,1717397432852,-500.0,0.00028292,4]
[328444874,1717397432862,-500.0,0.00028292,4]
[328444875,1717397432871,-500.0,0.00028292,4]
[328444876,1717397432881,-500.0,0.00028292,4]
[328444877,1717397432890,-500.0,0.00028292,4]
[328444878,1717397432900,-500.0,0.00028292,4]
[328444879,1717397432909,-611.1,0.00028292,4]
[328444880,1717397432918,-500.0,0.00028292,4]
[328444881,1717397432927,-500.0,0.00028292,4]
[328444882,1717397432937,-500.0,0.00028292,4]
[328444883,1717397432946,-500.0,0.00028292,4]
[328444884,1717397432955,-2042.99,0.00028292,4]
[328444885,1717397432966,-500.0,0.00028292,4]
[328444886,1717397432974,-500.0,0.00028292,4]
[328444887,1717397432983,-500.0,0.00028292,4]
[328444888,1717397432992,-500.0,0.00028292,4]
[328444889,1717397433001,-589.88891335,0.00028292,4]
[328444890,1717397433010,-178.93318754,0.00028292,4]
[328444891,1717397433019,-568.84,0.00028292,4]
[328444892,1717397433028,-500.0,0.00028292,4]
[328444893,1717397433037,-1499.42,0.00028292,4]
[328444894,1717397433046,-500.0,0.00028292,4]
[328444895,1717397433055,-593.16,0.00028292,4]
[328444896,1717397433063,-500.0,0.00028292,4]
[328444897,1717397433072,-500.0,0.00028292,4]
[328444898,1717397433082,-500.0,0.00028292,4]
[328444899,1717397433091,-526.32802083,0.00028292,4]
[328444900,1717397433100,-228.9156385,0.00028292,4]
[328444901,1717397433109,-500.0,0.00028292,4]
[328444902,1717397433118,-500.0,0.00028292,4]
[328444903,1717397433127,-500.0,0.00028292,4]
[328444904,1717397433135,-500.0,0.00028292,4]
[328444905,1717397433144,-500.0,0.00028292,4]
[328444906,1717397433153,-35927.72139632,0.00028293,2]
[328444907,1717397433310,-897.76498644,0.00028293,2]
[328444908,1717397433322,-474.98,0.00028293,2]
[328444909,1717397433344,-482.87677638,0.00028293,2]
[328444910,1717397433356,-989.71244623,0.00028293,2]
[328444911,1717397433367,-710.59577829,0.00028293,2]
[328444912,1717397437783,-4667.96338491,0.00026049,2]
[328444913,1717397437795,-326.6444601,0.00026049,2]
[328444916,1717397437969,-290.95384831,0.00026049,2]
[328444917,1717397437979,-15788.68839548,0.00028293,2]
[328444918,1717397439004,-418.02892662,0.00028293,2]
[328444919,1717397439016,-15571.0,0.00028293,2]
[328444922,1717397444290,-759.0,0.000255,5]
[328444925,1717397444300,-151.48897032,0.00026048,2]
[328444928,1717397444312,-285.62417363,0.00026048,2]
[328444929,1717397444567,-1067.56272833,0.00026048,2]
[328444930,1717397444793,-255.50508159,0.00026048,2]
[328444931,1717397444805,-3814.19010775,0.00026048,2]
[328444932,1717397444815,-4285.51253231,0.00028292,2]
[328444933,1717397444824,-58328.82269424,0.00028293,2]
[328444934,1717397444833,-563.01,0.00028392,4]
[328444935,1717397444842,-500.0,0.00028392,4]
[328444936,1717397444851,-177.80874875,0.00028392,4]
[328444937,1717397444860,-561.18,0.00028392,4]
[328444938,1717397444869,-500.0,0.00028392,4]
[328444939,1717397444878,-224.58655192,0.00028392,4]
[328444940,1717397444887,-500.0,0.00028392,4]
[328444941,1717397444896,-500.0,0.00028392,4]
[328444942,1717397444907,-500.0,0.00028392,4]
[328444943,1717397444916,-2080.45,0.00028392,4]
[328444944,1717397444925,-818.29,0.00028392,4]
[328444945,1717397444934,-500.0,0.00028392,4]
[328444946,1717397444944,-20981.9273,0.00028393,2]
[328444947,1717397444953,-8201.2761,0.00028393,2]
[328444948,1717397444962,-600.0,0.000284,3]
[328444949,1717397444971,-172.94471725,0.00028466,2]
[328444950,1717397444980,-500.0,0.00028493,4]
[328444951,1717397444989,-889.05,0.00028566,4]
[328444952,1717397444999,-500.0,0.00028566,4]
[328444955,1717397445007,-500.0,0.00028566,4]
[328444958,1717397445016,-500.0,0.00028566,4]
[328444961,1717397445026,-500.0,0.00028566,4]
[328444963,1717397445035,-859.75,0.00028566,4]
[328444964,1717397445044,-583.82,0.00028566,4]
[328444966,1717397445053,-500.0,0.00028566,4]
[328444968,1717397445062,-500.0,0.00028566,4]
[328444970,1717397445072,-500.0,0.00028566,4]
[328444972,1717397445081,-2768.69,0.00028566,4]
[328444973,1717397445090,-6332.1,0.00028566,4]
[328444974,1717397445099,-500.0,0.00028566,4]
[328444975,1717397445108,-611.1,0.00028566,4]
[328444976,1717397445117,-500.0,0.00028566,4]
[328444977,1717397445126,-500.0,0.00028566,4]
[328444978,1717397445136,-2042.99,0.00028566,4]
[328444979,1717397445145,-568.84,0.00028566,4]
[328444980,1717397445154,-1499.42,0.00028566,4]
[328444981,1717397445163,-593.16,0.00028566,4]
[328444982,1717397445172,-500.0,0.00028566,4]
[328444983,1717397445181,-500.0,0.00028566,4]
[328444984,1717397445192,-563.01,0.00028666,4]
[328444985,1717397445201,-561.18,0.00028666,4]
[328444986,1717397445210,-500.0,0.00028666,4]
[328444987,1717397445220,-446.25,0.00028666,4]
[328444988,1717397445229,-2080.45,0.00028666,4]
[328444989,1717397445238,-818.29,0.00028666,4]
[328444990,1717397445247,-1037.8107,0.00028667,2]
[328444991,1717397445257,-987.9,0.0002867,2]
[328444992,1717397445266,-704.53520446,0.00028749,2]
[328444993,1717397445276,-500.0,0.00028767,4]
[328444994,1717397445285,-2954.0,0.000288,2]
[328444995,1717397445295,-889.05,0.0002884,4]
[328444996,1717397445304,-500.0,0.0002884,4]
[328444997,1717397445313,-500.0,0.0002884,4]
[328444998,1717397445322,-500.0,0.0002884,4]
[328444999,1717397445332,-159.87190338,0.0002884,4]
[328445000,1717397445342,-859.75,0.0002884,4]
[328445001,1717397445351,-583.82,0.0002884,4]
[328445002,1717397445360,-500.0,0.0002884,4]